fUSD/lending_fUSD_20250606
["ID","MTS","AMOUNT","RATE_DAILY","PERIOD"]
[364662532,1749187873187,-233.057191,0.00030279,7]
[364662533,1749187873197,-862.157462,0.00030279,7]
[364662534,1749187873207,-150.0,0.00030279,2]
[364662535,1749187873217,-500.0,0.00030279,7]
[364662536,1749187873226,-150.0,0.00030284,2]
[364662537,1749187873235,-151.0,0.00030285,7]
[364662538,1749187873245,-1034.7,0.00030285,2]
[364662539,1749187873254,-150.90978705,0.00030285,2]
[364662540,1749187873263,-155.03047868,0.00030285,2]
[364662541,1749187873273,-151.0,0.00030286,7]
[364662542,1749187873282,-151.0,0.00030286,7]
[364662543,1749187873291,-151.0,0.00030286,7]
[364662544,1749187873300,-151.0,0.00030286,7]
[364662545,1749187873309,-151.0,0.00030286,7]
[364662546,1749187873319,-150.0,0.00030293,2]
[364662547,1749187873329,-150.0,0.00030298,2]
[364662548,1749187873342,-300.0,0.00030298,2]
[364662549,1749187873351,-153.134656,0.00030299,7]
[364662550,1749187873360,-151.0,0.00030299,7]
[364662551,1749187873370,-151.0,0.00030299,7]
[364662552,1749187873380,-151.0,0.00030299,7]
[364662553,1749187873390,-151.0,0.00030299,7]
[364662554,1749187873400,-151.0,0.00030299,7]
[364662555,1749187873410,-151.0,0.00030299,7]
[364662556,1749187873421,-151.0,0.00030299,7]
[364662557,1749187873431,-151.0,0.00030299,7]
[364662558,1749187873440,-1034.7,0.00030299,2]
[364662559,1749187873450,-500.0,0.00030299,7]
[364662560,1749187873461,-1145.33,0.00030299,7]
[364662561,1749187873471,-10716.42,0.00030299,7]
[364662562,1749187873481,-812.2,0.00030299,7]
[364662563,1749187873491,-1740.35,0.000303,2]
[364662564,1749187873500,-1740.35,0.000303,2]
[364662565,1749187873509,-1740.35,0.000303,2]
[364662566,1749187873519,-1743.79,0.000303,2]
[364662567,1749187873528,-926.72,0.000303,2]
[364662568,1749187873537,-926.72,0.000303,2]
[364662569,1749187873547,-125227.25,0.000303,7]
[364662570,1749187873559,-16851.35,0.000303,2]
[364662571,1749187873568,-16851.35,0.000303,2]
[364662572,1749187873578,-151.0,0.000303,7]
[364662573,1749187873587,-151.0,0.000303,7]
[364662574,1749187873597,-151.0,0.000303,7]
[364662575,1749187873606,-151.0,0.000303,7]
[364662576,1749187873616,-151.0,0.000303,7]
[364662577,1749187873633,-151.0,0.000303,7]
[364662578,1749187873651,-181.903676,0.000303,7]
[364662579,1749187873666,-166.138358,0.000303,7]
[364662580,1749187873682,-151.0,0.000303,7]
[364662581,1749187873699,-200.0,0.000303,14]
[364662582,1749187873717,-200.0,0.000303,14]
[364662583,1749187873731,-200.0,0.000303,14]
[364662584,1749187873747,-200.0,0.000303,14]
[364662585,1749187873764,-200.0,0.000303,14]
[364662586,1749187873781,-200.0,0.000303,14]
[364662587,1749187873798,-200.0,0.000303,14]
[364662588,1749187873815,-200.0,0.000303,14]
[364662589,1749187873831,-200.0,0.000303,14]
[364662590,1749187873847,-200.0,0.000303,14]
[364662591,1749187873867,-200.0,0.000303,14]
[364662592,1749187873882,-200.0,0.000303,14]
[364662593,1749187873894,-200.0,0.000303,14]
[364662594,1749187873913,-200.0,0.000303,14]
[364662595,1749187873924,-200.0,0.000303,14]
[364662596,1749187873938,-200.0,0.000303,14]
[364662597,1749187873956,-200.0,0.000303,14]
[364662598,1749187873969,-200.0,0.000303,14]
[364662599,1749187873985,-200.0,0.000303,14]
[364662600,1749187874000,-200.0,0.000303,14]
[364662601,1749187874016,-200.0,0.000303,14]
[364662602,1749187874032,-200.0,0.000303,14]
[364662603,1749187874047,-200.0,0.000303,14]
[364662604,1749187874065,-200.0,0.000303,14]
[364662605,1749187874080,-200.0,0.000303,14]
[364662606,1749187874095,-200.0,0.000303,14]
[364662607,1749187874109,-200.0,0.000303,14]
[364662608,1749187874124,-200.0,0.000303,14]
[364662609,1749187874139,-200.0,0.000303,14]
[364662610,1749187874153,-200.0,0.000303,14]
[364662611,1749187874168,-295.0,0.000303,14]
[364662612,1749187874182,-151.0,0.000303,7]
[364662613,1749187874195,-151.0,0.000303,7]
[364662614,1749187874209,-157.459427,0.000303,7]
[364662615,1749187874224,-361.443817,0.000303,7]
[364662616,1749187874237,-151.0,0.000303,7]
[364662617,1749187874252,-862.157462,0.000303,7]
[364662618,1749187874266,-151.0,0.000303,7]
[364662619,1749187874280,-201.984152,0.000303,7]
[364662620,1749187874293,-201.984152,0.000303,7]
[364662621,1749187874307,-151.0,0.000303,7]
[364662622,1749187874320,-157.588458,0.000303,7]
[364662623,1749187874335,-189.368929,0.000303,7]
[364662624,1749187874350,-151.0,0.000303,7]
[364662625,1749187874364,-151.0,0.000303,7]
[364662626,1749187874379,-288.429848,0.000303,7]
[364662627,1749187874393,-288.429848,0.000303,7]
[364662628,1749187874407,-254.294172,0.000303,7]
[364662629,1749187874421,-254.294172,0.000303,7]
[364662630,1749187874435,-1278.500374,0.000303,7]
[364662631,1749187874449,-1278.500374,0.000303,7]
[364662632,1749187874464,-151.0,0.000303,7]
[364662633,1749187874478,-254.992778,0.000303,7]
[364662634,1749187874492,-874.848126,0.000303,7]
[364662635,1749187874506,-874.848126,0.000303,7]
[364662636,1749187874520,-505.315916,0.000303,7]
[364662637,1749187874533,-505.315916,0.000303,7]
[364662638,1749187874547,-1656.20892,0.000303,7]
[364662639,1749187874560,-1656.20892,0.000303,7]
[364662640,1749187874575,-229.894106,0.000303,7]
[364662641,1749187874590,-229.894106,0.000303,7]
[364662642,1749187874603,-5186.83,0.000303,2]
[364662643,1749187874617,-5186.83,0.000303,2]
[364662644,1749187874633,-159.0,0.000303,22]
[364662645,1749187874647,-500.1606,0.000303,2]
[364662646,1749187874660,-200.516106,0.000303,3]
[364662647,1749187874675,-1500.0,0.000303,3]
[364662648,1749187874694,-1694.3207,0.000303,2]
[364662649,1749187874708,-958.38,0.000303,2]
[364662650,1749187874722,-958.38,0.000303,2]
[364662651,1749187874735,-577.1635,0.000303,2]
[364662652,1749187874749,-500.0,0.00030301,7]
[364662653,1749187874763,-186.07300312,0.00030301,7]
[364662654,1749187874778,-466.0,0.00030301,7]
[364662655,1749187874792,-500.0,0.00030301,7]
[364662656,1749187874806,-500.0,0.00030301,7]
[364662657,1749187874821,-500.0,0.00030301,7]
[364662658,1749187874835,-500.0,0.00030301,2]
[364662659,1749187874849,-1966.0,0.00030301,7]
[364662660,1749187874863,-483.0,0.00030301,7]
[364662661,1749187874878,-500.0,0.00030301,7]
[364662662,1749187874892,-1850.0,0.00030301,7]
[364662663,1749187874906,-500.0,0.00030301,7]
[364662664,1749187874920,-151.0,0.00030301,7]
[364662665,1749187874933,-151.0,0.00030301,7]
[364662666,1749187874948,-151.0,0.00030301,7]
[364662667,1749187874962,-151.0,0.00030301,7]
[364662668,1749187874977,-153.09525,0.00030301,7]
[364662669,1749187874991,-151.0,0.00030301,7]
[364662670,1749187875005,-151.0,0.00030301,7]
[364662671,1749187875019,-475.0,0.00030301,2]
[364662672,1749187875033,-1000.0,0.00030301,2]
[364662673,1749187875045,-1145.33,0.00030305,7]
[364662674,1749187875060,-812.2,0.00030305,7]
[364662675,1749187875074,-151.0,0.00030306,7]
[364662676,1749187875088,-181.903683,0.00030306,7]
[364662677,1749187875101,-500.0,0.00030306,7]
[364662678,1749187875114,-10716.42,0.00030306,7]
[364662679,1749187875127,-151.0,0.00030307,7]
[364662680,1749187875141,-151.0,0.00030307,7]
[364662681,1749187875154,-151.0,0.00030307,7]
[364662682,1749187875167,-151.0,0.00030307,7]
[364662683,1749187875182,-151.0,0.00030307,7]
[364662684,1749187875197,-151.0,0.00030307,7]
[364662685,1749187875212,-166.138366,0.00030307,7]
[364662686,1749187875228,-151.0,0.00030307,7]
[364662687,1749187875244,-151.0,0.00030307,7]
[364662688,1749187875259,-151.0,0.00030307,7]
[364662689,1749187875274,-361.443817,0.00030307,7]
[364662690,1749187875290,-157.459427,0.00030307,7]
[364662691,1749187875304,-361.443816,0.00030307,7]
[364662692,1749187875320,-192.936671,0.00030307,7]
[364662693,1749187875337,-862.157462,0.00030307,7]
[364662694,1749187875354,-151.0,0.00030307,7]
[364662695,1749187875370,-201.984152,0.00030307,7]
[364662696,1749187875389,-201.984154,0.00030307,7]
[364662697,1749187875404,-151.0,0.00030307,7]
[364662698,1749187875418,-189.368932,0.00030307,7]
[364662699,1749187875433,-151.0,0.00030307,7]
[364662700,1749187875446,-237.04154,0.00030307,7]
[364662701,1749187875461,-288.429848,0.00030307,7]
[364662702,1749187875474,-288.429845,0.00030307,7]
[364662703,1749187875488,-254.294172,0.00030307,7]
[364662704,1749187875501,-254.294169,0.00030307,7]
[364662705,1749187875516,-1278.500374,0.00030307,7]
[364662706,1749187875528,-1278.50036615,0.00030307,7]
[364662707,1749187875542,-279.765778,0.00030307,7]
[364662708,1749187875556,-874.848126,0.00030307,7]
[364662709,1749187875570,-874.84811912,0.00030307,7]
[364662710,1749187875583,-505.315916,0.00030307,7]
[364662711,1749187875597,-505.315912,0.00030307,7]
[364662712,1749187875610,-1656.20892,0.00030307,7]
[364662713,1749187875626,-1656.208912,0.00030307,7]
[364662714,1749187875640,-229.894106,0.00030307,7]
[364662715,1749187875654,-229.894106,0.00030307,7]
[364662716,1749187875668,-18524.7129384,0.00030307,2]
[364662717,1749187875682,-3246.0617085,0.00030307,2]
[364662718,1749187875695,-25762.5621109,0.00030307,2]
[364662719,1749187875709,-898.675152,0.00030307,2]
[364662720,1749187875724,-1617.0092913,0.00030307,2]
[364662721,1749187875739,-2921.3484485,0.00030307,2]
[364662722,1749187875958,-141160.4369614,0.00030307,2]
[364662723,1749187876055,-338.14271302,0.00030309,2]
[364662724,1749187876068,-805.0,0.00030311,2]
[364662725,1749187876078,-636.0,0.00030311,2]
[364662726,1749187876088,-2099.361,0.00030311,2]
[364662727,1749187876098,-559.122,0.00030311,2]
[364662728,1749187876110,-929.469,0.00030311,2]
[364662729,1749187876122,-1274.0,0.00030311,2]
[364662730,1749187876132,-589.0,0.00030311,2]
[364662731,1749187876142,-1254.0,0.00030311,2]
[364662732,1749187876153,-1158.0,0.00030311,2]
[364662733,1749187876164,-7017.0,0.00030311,2]
[364662734,1749187876174,-4081.0,0.00030311,2]
[364662735,1749187876184,-1164.445,0.00030311,2]
[364662736,1749187876193,-155.017,0.00030311,2]
[364662737,1749187876203,-156.819,0.00030323,2]
[364662738,1749187876213,-150.0,0.00030323,2]
[364662739,1749187876223,-150.205,0.00030323,2]
[364662740,1749187876234,-150.0,0.00030325,2]
[364662741,1749187876245,-1034.7,0.00030326,2]
[364662742,1749187876254,-1145.33,0.00030326,7]
[364662743,1749187876264,-1034.7,0.00030327,2]
[364662744,1749187876274,-1034.7,0.00030327,2]
[364662745,1749187876283,-1034.7,0.00030327,2]
[364662746,1749187876293,-1034.7,0.00030327,2]
[364662747,1749187876303,-1034.7,0.00030327,2]
[364662748,1749187876313,-1034.88744505,0.00030327,2]
[364662749,1749187876323,-500.0,0.00030327,7]
[364662750,1749187876332,-630.13782369,0.00030327,7]
[364662751,1749187876345,-1145.33,0.00030327,7]
[364662752,1749187876355,-1145.33,0.00030327,7]
[364662753,1749187876364,-1145.33,0.00030327,7]
[364662754,1749187876374,-1145.33,0.00030327,7]
[364662755,1749187876385,-1145.51112612,0.00030327,7]
[364662756,1749187876395,-10716.42,0.00030327,7]
[364662757,1749187876404,-10716.42,0.00030327,7]
[364662758,1749187876415,-10716.42,0.00030327,7]
[364662759,1749187876424,-10716.42,0.00030327,7]
[364662760,1749187876435,-10716.54503488,0.00030327,7]
[364662761,1749187876446,-812.2,0.00030327,7]
[364662762,1749187876456,-812.2,0.00030327,7]
[364662763,1749187876466,-812.2,0.00030327,7]
[364662764,1749187876476,-812.2,0.00030327,7]
[364662765,1749187876486,-812.2,0.00030327,7]
[364662766,1749187876495,-812.2,0.00030327,7]
[364662767,1749187876505,-812.2,0.00030327,7]
[364662768,1749187876515,-812.28176622,0.00030327,7]
[364662769,1749187876524,-11561.69,0.00030328,7]
[364662770,1749187876534,-10430.48,0.00030328,7]
[364662771,1749187876545,-150.0,0.00030328,2]
[364662772,1749187876554,-10600.37916782,0.00030328,2]
[364662773,1749187876565,-150.0,0.00030328,2]
[364662774,1749187876574,-4772.72720686,0.00030328,2]
[364662775,1749187876584,-151.0,0.00030328,7]
[364662776,1749187876593,-197.374322,0.00030328,7]
[364662777,1749187876603,-1222.51,0.00030328,7]
[364662778,1749187876612,-151.0,0.00030328,7]
[364662779,1749187876622,-151.0,0.00030328,7]
[364662780,1749187876632,-151.0,0.00030328,7]
[364662781,1749187876642,-151.0,0.00030328,7]
[364662782,1749187876652,-151.0,0.00030328,7]
[364662783,1749187876662,-151.0,0.00030328,7]
[364662784,1749187876671,-151.0,0.00030328,7]
[364662785,1749187876681,-151.0,0.00030328,7]
[364662786,1749187876691,-151.0,0.00030328,7]
[364662787,1749187876701,-151.0,0.00030328,7]
[364662788,1749187876711,-151.0,0.00030328,7]
[364662789,1749187876721,-151.0,0.00030328,7]
[364662790,1749187876734,-154.495129,0.00030328,7]
[364662791,1749187876744,-153.578748,0.00030328,7]
[364662792,1749187876754,-151.0,0.00030328,7]
[364662793,1749187876764,-2066.730566,0.00030328,7]
[364662794,1749187876774,-2247.837537,0.00030328,7]
[364662795,1749187876784,-151.0,0.00030328,7]
[364662796,1749187876794,-157.459431,0.00030328,7]
[364662797,1749187876804,-862.157466,0.00030328,7]
[364662798,1749187876813,-600.0,0.00030328,2]
[364662799,1749187876824,-480.0,0.00030328,7]
[364662800,1749187876834,-480.0,0.00030328,7]
[364662801,1749187876844,-480.0,0.00030328,7]
[364662802,1749187876854,-480.0,0.00030328,7]
[364662803,1749187876865,-269.75913412,0.00030328,7]
[364662804,1749187876878,-480.0,0.00030328,7]
[364662805,1749187876889,-480.0,0.00030328,7]
[364662806,1749187876899,-697.19,0.00030328,7]
[364662807,1749187876910,-480.0,0.00030328,7]
[364662808,1749187876920,-480.0,0.00030328,7]
[364662809,1749187876930,-623.90769779,0.00030328,7]
[364662810,1749187876940,-488.82154599,0.00030328,7]
[364662811,1749187876950,-484.25389279,0.00030328,7]
[364662812,1749187876960,-480.0,0.00030328,7]
[364662813,1749187876970,-480.0,0.00030328,7]
[364662814,1749187876980,-498.22459929,0.00030328,7]
[364662815,1749187876990,-480.0,0.00030328,7]
[364662816,1749187877000,-480.0,0.00030328,7]
[364662817,1749187877010,-487.54297005,0.00030328,7]
[364662818,1749187877019,-480.0,0.00030328,7]
[364662819,1749187877029,-480.0,0.00030328,7]
[364662820,1749187877039,-480.0,0.00030328,7]
[364662821,1749187877048,-480.0,0.00030328,7]
[364662822,1749187877058,-438.90016387,0.00030328,7]
[364662823,1749187877068,-448.89377785,0.00030328,7]
[364662824,1749187877078,-480.0,0.00030328,7]
[364662825,1749187877087,-483.99946189,0.00030328,7]
[364662826,1749187877097,-502.21832714,0.00030328,7]
[364662827,1749187877107,-480.0,0.00030328,7]
[364662828,1749187877117,-491.30183378,0.00030328,7]
[364662829,1749187877129,-480.0,0.00030328,7]
[364662830,1749187877139,-480.0,0.00030328,7]
[364662831,1749187877149,-480.0,0.00030328,7]
[364662832,1749187877158,-460.0,0.00030328,7]
[364662833,1749187877168,-480.0,0.00030328,7]
[364662834,1749187877177,-480.0,0.00030328,7]
[364662835,1749187877187,-480.0,0.00030328,7]
[364662836,1749187877197,-491.05088204,0.00030328,7]
[364662837,1749187877208,-480.0,0.00030328,7]
[364662838,1749187877219,-480.0,0.00030328,7]
[364662839,1749187877229,-480.0,0.00030328,7]
[364662840,1749187877239,-480.0,0.00030328,7]
[364662841,1749187877249,-496.35132524,0.00030328,7]
[364662842,1749187877258,-480.0,0.00030328,7]
[364662843,1749187877268,-491.99101096,0.00030328,7]
[364662844,1749187877277,-491.4751328,0.00030328,7]
[364662845,1749187877287,-480.0,0.00030328,7]
[364662846,1749187877297,-480.0,0.00030328,7]
[364662847,1749187877307,-480.0,0.00030328,7]
[364662848,1749187877316,-480.0,0.00030328,7]
[364662849,1749187877326,-480.0,0.00030328,7]
[364662850,1749187877337,-495.87428154,0.00030328,7]
[364662851,1749187877348,-492.23874236,0.00030328,7]
[364662852,1749187877359,-480.0,0.00030328,7]
[364662853,1749187877369,-348.99824157,0.00030328,7]
[364662854,1749187877381,-480.0,0.00030328,7]
[364662855,1749187877391,-480.0,0.00030328,7]
[364662856,1749187877400,-480.0,0.00030328,7]
[364662857,1749187877410,-486.36135714,0.00030328,7]
[364662858,1749187877421,-672.83,0.00030328,7]
[364662859,1749187877431,-480.0,0.00030328,7]
[364662860,1749187877441,-480.0,0.00030328,7]
[364662861,1749187877450,-480.0,0.00030328,7]
[364662862,1749187877459,-480.0,0.00030328,7]
[364662863,1749187877469,-492.39931651,0.00030328,7]
[364662864,1749187877479,-480.0,0.00030328,7]
[364662865,1749187877488,-499.77647332,0.00030328,7]
[364662866,1749187877497,-497.879911,0.00030328,7]
[364662867,1749187877506,-480.0,0.00030328,7]
[364662868,1749187877516,-480.0,0.00030328,7]
[364662869,1749187877525,-485.54724894,0.00030328,7]
[364662870,1749187877534,-480.0,0.00030328,7]
[364662871,1749187877543,-251.61837732,0.00030328,7]
[364662872,1749187877552,-295.60632418,0.00030328,7]
[364662873,1749187877562,-480.0,0.00030328,7]
[364662874,1749187877571,-155.79641091,0.00030328,7]
[364662875,1749187877579,-456.48427398,0.00030328,7]
[364662876,1749187877589,-480.0,0.00030328,7]
[364662877,1749187877598,-487.54450385,0.00030328,7]
[364662878,1749187877607,-487.81856125,0.00030328,7]
[364662879,1749187877616,-480.0,0.00030328,7]
[364662880,1749187877629,-480.0,0.00030328,7]
[364662881,1749187877638,-480.0,0.00030328,7]
[364662882,1749187877647,-1010.76,0.00030328,7]
[364662883,1749187877656,-480.0,0.00030328,7]
[364662884,1749187877665,-294.85269603,0.00030328,7]
[364662885,1749187877674,-504.60064045,0.00030328,7]
[364662886,1749187877684,-494.55999341,0.00030328,7]
[364662887,1749187877694,-486.43758085,0.00030328,7]
[364662888,1749187877704,-313.6696008,0.00030328,7]
[364662889,1749187878334,-166.3303992,0.00030328,7]
[364662890,1749187878348,-1357.84726863,0.00030328,30]
[364662891,1749187878357,-901.12,0.00030328,7]
[364662892,1749187878366,-480.0,0.00030328,7]
[364662893,1749187878376,-480.0,0.00030328,7]
[364662894,1749187878385,-480.0,0.00030328,7]
[364662895,1749187878394,-480.0,0.00030328,7]
[364662896,1749187878404,-483.53092979,0.00030328,7]
[364662897,1749187878413,-480.0,0.00030328,7]
[364662898,1749187878423,-490.68484751,0.00030328,7]
[364662899,1749187878433,-441.15361081,0.00030328,7]
[364662900,1749187878443,-480.0,0.00030328,7]
[364662901,1749187878452,-480.0,0.00030328,7]
[364662902,1749187878461,-491.75804975,0.00030328,7]
[364662903,1749187878471,-480.0,0.00030328,7]
[364662904,1749187878481,-496.36081379,0.00030328,7]
[364662905,1749187878490,-561.74,0.00030328,7]
[364662906,1749187878499,-480.0,0.00030328,7]
[364662907,1749187878508,-480.0,0.00030328,7]
[364662908,1749187878517,-480.0,0.00030328,7]
[364662909,1749187878527,-472.00483287,0.00030328,7]
[364662910,1749187878536,-449.89806166,0.00030328,7]
[364662911,1749187878545,-480.0,0.00030328,7]
[364662912,1749187878554,-491.56178403,0.00030328,7]
[364662913,1749187878564,-286.82518299,0.00030328,7]
[364662914,1749187878573,-480.0,0.00030328,7]
[364662915,1749187878583,-480.0,0.00030328,7]
[364662916,1749187878592,-278.96972723,0.00030328,7]
[364662917,1749187878622,-507.4897949,0.00030164,7]
[364662918,1749187878632,-201.03027277,0.00030328,7]
[364662919,1749187878642,-480.0,0.00030328,7]
[364662920,1749187878652,-480.0,0.00030328,7]
[364662921,1749187878661,-176.47876711,0.00030328,7]
[364662922,1749187878671,-480.0,0.00030328,7]
[364662923,1749187878681,-480.0,0.00030328,7]
[364662924,1749187878691,-480.0,0.00030328,7]
[364662925,1749187878700,-480.0,0.00030328,7]
[364662926,1749187878710,-491.64288782,0.00030328,7]
[364662927,1749187878720,-480.0,0.00030328,7]
[364662928,1749187878729,-480.0,0.00030328,7]
[364662929,1749187878739,-480.0,0.00030328,7]
[364662930,1749187878748,-480.0,0.00030328,7]
[364662931,1749187878757,-480.0,0.00030328,7]
[364662932,1749187878767,-480.0,0.00030328,7]
[364662933,1749187878776,-560.01681825,0.00030328,7]
[364662934,1749187878785,-474.74908371,0.00030328,7]
[364662935,1749187878795,-480.0,0.00030328,7]
[364662936,1749187878804,-497.50829364,0.00030328,7]
[364662937,1749187878817,-5.15199688,0.00030328,7]
[364662938,1749187878827,-480.0,0.00030328,7]
[364662939,1749187878836,-480.0,0.00030328,7]
[364662940,1749187878846,-480.0,0.00030328,7]
[364662941,1749187878856,-498.64641375,0.00030328,7]
[364662942,1749187878865,-487.1339557,0.00030328,7]
[364662943,1749187878875,-508.01539607,0.00030328,7]
[364662944,1749187878885,-480.0,0.00030328,7]
[364662945,1749187878894,-480.0,0.00030328,7]
[364662946,1749187878904,-489.65978888,0.00030328,7]
[364662947,1749187878913,-480.0,0.00030328,7]
[364662948,1749187878923,-480.0,0.00030328,7]
[364662949,1749187878933,-480.0,0.00030328,7]
[364662950,1749187878942,-399.04837672,0.00030328,7]
[364662951,1749187878952,-489.22547539,0.00030328,7]
[364662952,1749187878962,-480.0,0.00030328,7]
[364662953,1749187878972,-490.92570919,0.00030328,7]
[364662954,1749187878981,-480.0,0.00030328,7]
[364662955,1749187878991,-297.74323961,0.00030328,7]
[364662956,1749187879000,-480.0,0.00030328,7]
[364662957,1749187879011,-480.0,0.00030328,7]
[364662958,1749187879021,-480.0,0.00030328,7]
[364662959,1749187879030,-467.73213458,0.00030328,7]
[364662960,1749187879039,-270.91676883,0.00030328,7]
[364662961,1749187879049,-480.0,0.00030328,7]
[364662962,1749187879058,-480.0,0.00030328,7]
[364662963,1749187879068,-485.96654456,0.00030328,7]
[364662964,1749187879078,-480.0,0.00030328,7]
[364662965,1749187879088,-480.0,0.00030328,7]
[364662966,1749187879097,-480.0,0.00030328,7]
[364662967,1749187879107,-500.5704907,0.00030328,7]
[364662968,1749187879116,-480.0,0.00030328,7]
[364662969,1749187879126,-480.0,0.00030328,7]
[364662970,1749187879136,-480.0,0.00030328,7]
[364662971,1749187879145,-488.44103161,0.00030328,7]
[364662972,1749187879155,-480.0,0.00030328,7]
[364662973,1749187879165,-492.64587263,0.00030328,7]
[364662974,1749187879176,-480.0,0.00030328,7]
[364662975,1749187879186,-480.0,0.00030328,7]
[364662976,1749187879196,-480.0,0.00030328,7]
[364662977,1749187879206,-550.33,0.00030328,7]
[364662978,1749187879217,-503.30613724,0.00030328,7]
[364662979,1749187879226,-480.0,0.00030328,7]
[364662980,1749187879236,-500.10509747,0.00030328,7]
[364662981,1749187879246,-479.58928865,0.00030328,7]
[364662982,1749187879256,-480.0,0.00030328,7]
[364662983,1749187879265,-480.0,0.00030328,7]
[364662984,1749187879275,-485.6990593,0.00030328,7]
[364662985,1749187879284,-480.0,0.00030328,7]
[364662986,1749187879522,-1000.0,0.00030328,7]
[364662987,1749187879532,-452.14920333,0.00030328,7]
[364662988,1749187879543,-480.0,0.00030328,7]
[364662989,1749187879554,-489.5153713,0.00030328,7]
[364662990,1749187879566,-480.0,0.00030328,7]
[364662991,1749187879577,-480.0,0.00030328,7]
[364662992,1749187879588,-342.0337611,0.00030328,7]
[364662993,1749187879599,-480.0,0.00030328,7]
[364662994,1749187879610,-480.0,0.00030328,7]
[364662995,1749187879621,-487.40487642,0.00030328,7]
[364662996,1749187879635,-491.39823884,0.00030328,7]
[364662997,1749187879646,-489.83533206,0.00030328,7]
[364662998,1749187879656,-480.0,0.00030328,7]
[364662999,1749187879666,-571.41595372,0.00030328,7]
[364663000,1749187879677,-480.0,0.00030328,7]
[364663001,1749187879688,-202.13031356,0.00030328,7]
[364663002,1749187879699,-480.0,0.00030328,7]
[364663003,1749187879710,-480.0,0.00030328,7]
[364663004,1749187879721,-431.86940347,0.00030328,7]
[364663005,1749187879732,-391.5002071,0.00030328,7]
[364663006,1749187879742,-480.0,0.00030328,7]
[364663007,1749187879754,-480.0,0.00030328,7]
[364663008,1749187879765,-640.48,0.00030328,7]
[364663009,1749187879776,-480.0,0.00030328,7]
[364663010,1749187879787,-480.0,0.00030328,7]
[364663011,1749187879797,-480.0,0.00030328,7]
[364663012,1749187879808,-783.77,0.00030328,7]
[364663013,1749187879819,-487.78756278,0.00030328,7]
[364663014,1749187879829,-480.0,0.00030328,7]
[364663015,1749187879839,-559.14076901,0.00030328,7]
[364663016,1749187879853,-480.0,0.00030328,7]
[364663017,1749187879863,-480.0,0.00030328,7]
[364663018,1749187879877,-603.85,0.00030328,7]
[364663019,1749187879887,-514.51389139,0.00030328,7]
[364663020,1749187879896,-480.0,0.00030328,7]
[364663021,1749187879906,-480.0,0.00030328,7]
[364663022,1749187879916,-480.0,0.00030328,7]
[364663023,1749187879927,-480.0,0.00030328,7]
[364663024,1749187879938,-480.0,0.00030328,7]
[364663025,1749187879948,-361.89560119,0.00030328,7]
[364663026,1749187879967,-128.6832207,0.00030328,7]
[364663027,1749187879977,-480.0,0.00030328,7]
[364663028,1749187879986,-480.0,0.00030328,7]
[364663029,1749187879996,-480.0,0.00030328,7]
[364663030,1749187880007,-480.0,0.00030328,7]
[364663031,1749187880017,-480.0,0.00030328,7]